[Event "Asian Nation Cup Open 2018"]
[Site "Hamedan"]
[Date "2018.08.03"]
[Round "7"]
[White "Bai, Jinshi"]
[Black "Kostenko, Petr"]
[Result "0-1"]
[ECO "D20"]
[WhiteElo "2588"]
[BlackElo "2444"]
[Annotator "ChessBase"]
[PlyCount "82"]
[EventDate "2018.07.27"]
[EventType "swiss"]
[EventCountry "IRI"]
[SourceTitle "playchess.com"]
[Source "ChessBase"]
[SourceQuality "1"]
[WhiteTeam "China"]
[BlackTeam "Kazakhstan"]
[WhiteTeamCountry "CHN"]
[BlackTeamCountry "KAZ"]
[TimeControl "40/5400+30:1800+30"]

1. d4 {[%emt 0:00:00]} d5 {[%emt 0:00:00]} 2. c4 {[%emt 0:00:10]} dxc4 {[%emt 0:00:00]} 3. e3 {[%emt 0:00:33]} e5 {[%emt 0:00:14]} 4. Bxc4 {[%emt 0:00:09]} exd4 {[%emt 0:00:07]} 5. exd4 {[%emt 0:00:06]} Bd6 {[%emt 0:00:29]} 6. Nf3 {[%emt 0:01:18]} Nf6 {[%emt 0:00:09]} 7. Qe2+ {[%emt 0:01:28]} Qe7 {[%emt 0:00:10]} 8. Qxe7+ {[%emt 0:00:20]} Bxe7 {[%emt 0:00:06]} 9. O-O {[%emt 0:00:10]} O-O {[%emt 0:00:27]} 10. Re1 {[%emt 0:02:32]} Bd6 {[%emt 0:00:12]} 11. Bg5 {[%emt 0:01:22]} Nbd7 {[%emt 0:00:09]} 12. Nc3 {[%emt 0:00:09]} a6 {[%emt 0:00:08]} 13. a4 {[%emt 0:00:06]} h6 {[%emt 0:26:13]} 14. Bh4 {[%emt 0:00:07]} Bb4 {[%emt 0:00:03]} 15. Ne5 {[%emt 0:34:57]} Nxe5 {[%emt 0:01:23]} 16. dxe5 {[%emt 0:01:07]} Nh5 {[%emt 0:00:57]} 17. Rec1 {[%emt 0:17:20]} Bxc3 {[%emt 0:02:28]} 18. Rxc3 {[%emt 0:00:04]} g5 {[%emt 0:20:40]} 19. Bg3 {[%emt 0:00:10]} Re8 {[%emt 0:00:10]} 20. Rd1 {[%emt 0:08:09]} Bf5 {[%emt 0:01:06]} 21. h4 {[%emt 0:19:30]} gxh4 {[%emt 0:12:15]} 22. Bh2 {[%emt 0:00:27]} Rad8 {[%emt 0:00:43]} 23. Be2 {[%emt 0:01:45]} Rxd1+ {[%emt 0:02:47]} 24. Bxd1 {[%emt 0:00:03]} Ng7 {[%emt 0:00:06]} 25. Bf3 {[%emt 0:04:13]} Ne6 {[%emt 0:11:29]} 26. Rc4 {[%emt 0:02:13]} h3 {[%emt 0:00:22]} 27. g4 {[%emt 0:01:15]} Bd3 {[%emt 0:00:12]} 28. Rc3 {[%emt 0:01:05]} Rd8 {[%emt 0:00:04]} 29. Bg3 {[%emt 0:01:11]} c6 {[%emt 0:00:37]} 30. Kh2 {[%emt 0:00:17]} Ng5 {[%emt 0:02:06]} 31. Bh1 {[%emt 0:00:23]} Be4 {[%emt 0:00:53]} 32. Rb3 {[%emt 0:01:35]} Bxh1 {[%emt 0:00:26]} 33. Kxh1 {[%emt 0:00:03]} Rd4 {[%emt 0:01:44]} 34. Kh2 {[%emt 0:00:30]} Rxg4 {[%emt 0:00:30]} 35. f3 {[%emt 0:02:05]} Rc4 {[%emt 0:00:36]} 36. f4 {[%emt 0:00:33]} Rc2+ {[%emt 0:02:22]} 37. Kh1 {[%emt 0:00:04]} Ne6 {[%emt 0:00:21]} 38. Rd3 {[%emt 0:00:58]} Rxb2 {[%emt 0:01:17]} 39. f5 {[%emt 0:00:08]} Ng5 {[%emt 0:01:49]} 40. Re3 {[%emt 0:00:54]} Kf8 {[%emt 0:00:47]} 41. Bh4 {[%emt 0:09:28]} Rb4 {[%emt 0:01:06]} 0-1

[Event "Asian Nation Cup Open 2018"]
[Site "Hamedan"]
[Date "2018.08.03"]
[Round "7"]
[White "Idani, Pouya"]
[Black "Abdulwahhab, Ahmed Abdulsattar A"]
[Result "1-0"]
[ECO "E63"]
[WhiteElo "2583"]
[BlackElo "2290"]
[Annotator "ChessBase"]
[PlyCount "61"]
[EventDate "2018.07.27"]
[EventType "swiss"]
[EventCountry "IRI"]
[SourceTitle "playchess.com"]
[Source "ChessBase"]
[SourceQuality "1"]
[WhiteTeam "Iran"]
[BlackTeam "Iraq"]
[WhiteTeamCountry "IRI"]
[BlackTeamCountry "IRQ"]
[TimeControl "40/5400+30:1800+30"]

1. Nf3 {[%emt 0:00:32]} Nf6 {[%emt 0:01:00]} 2. c4 {[%emt 0:00:05]} g6 {[%emt 0:00:11]} 3. g3 {[%emt 0:00:03]} Bg7 {[%emt 0:00:05]} 4. Bg2 {[%emt 0:00:02]} O-O {[%emt 0:00:14]} 5. d4 {[%emt 0:00:03]} d6 {[%emt 0:00:37]} 6. O-O {[%emt 0:00:09]} Nc6 {[%emt 0:00:12]} 7. Nc3 {[%emt 0:00:04]} a6 {[%emt 0:00:05]} 8. b3 {[%emt 0:00:02]} Rb8 {[%emt 0:04:38]} 9. d5 {[%emt 0:00:08]} Na5 {[%emt 0:00:57]} 10. Bd2 {[%emt 0:00:04]} c5 {[%emt 0:00:30]} 11. dxc6 {[%emt 0:00:06]} Nxc6 {[%emt 0:00:17]} 12. Rc1 {[%emt 0:00:03]} Bf5 {[%emt 0:01:28]} 13. Ng5 {[%emt 0:00:28]} h6 {[%emt 0:01:33]} 14. Nge4 {[%emt 0:00:20]} Nxe4 {[%emt 0:00:17]} 15. Nxe4 {[%emt 0:00:04]} Qd7 {[%emt 0:00:42]} 16. Re1 {[%emt 0:08:00]} Rfc8 {[%emt 0:02:37]} 17. Bc3 {[%emt 0:01:10]} b5 {[%emt 0:03:04]} 18. Bxg7 {[%emt 0:00:06]} Kxg7 {[%emt 0:00:07]} 19. c5 {[%emt 0:00:54]} Qe6 {[%emt 0:03:33]} 20. Qc2 {[%emt 0:11:52]} Kh7 {[%emt 0:03:33]} 21. cxd6 {[%emt 0:01:02]} exd6 {[%emt 0:07:46]} 22. Qd3 {[%emt 0:04:25]} Nb4 {[%emt 0:02:52]} 23. Qxd6 {[%emt 0:06:52]} Nxa2 {[%emt 0:04:52]} 24. Rcd1 {[%emt 0:08:56]} Qxd6 {[%emt 0:03:10]} 25. Nxd6 {[%emt 0:02:50]} Rc5 {[%emt 0:08:32]} 26. Nxf5 {[%emt 0:01:51]} Rxf5 {[%emt 0:01:58]} 27. Rd7 {[%emt 0:00:12]} Kg7 {[%emt 0:00:41]} 28. e4 {[%emt 0:00:53]} Rc5 {[%emt 0:00:48]} 29. e5 {[%emt 0:00:04]} Nb4 {[%emt 0:01:34]} 30. e6 {[%emt 0:00:47]} Rf8 {[%emt 0:00:16]} 31. e7 {[%emt 0:00:37]} 1-0

[Event "Asian Nation Cup Open 2018"]
[Site "Hamedan"]
[Date "2018.08.03"]
[Round "7"]
[White "Firouzja, Alireza"]
[Black "Noah, A .H. Al-Ali"]
[Result "1-0"]
[ECO "D25"]
[WhiteElo "2561"]
[BlackElo "2289"]
[Annotator "ChessBase"]
[PlyCount "95"]
[EventDate "2018.07.27"]
[EventType "swiss"]
[EventCountry "IRI"]
[SourceTitle "playchess.com"]
[Source "ChessBase"]
[SourceQuality "1"]
[WhiteTeam "Iran"]
[BlackTeam "Iraq"]
[WhiteTeamCountry "IRI"]
[BlackTeamCountry "IRQ"]
[TimeControl "40/5400+30:1800+30"]

1. d4 {[%emt 0:00:00]} d5 {[%emt 0:10:19]} 2. Nf3 {[%emt 0:00:00]} Nf6 {[%emt 0:00:08]} 3. c4 {[%emt 0:00:00]} dxc4 {[%emt 0:00:04]} 4. e3 {[%emt 0:00:00]} a6 {[%emt 0:00:03]} 5. Bxc4 {[%emt 0:00:00]} c5 {[%emt 0:02:18]} 6. Qa4+ {[%emt 0:08:23]} Bd7 {[%emt 0:04:26]} 7. Qd1 {[%emt 0:03:34]} Nc6 {[%emt 0:12:33]} 8. O-O {[%emt 0:03:29]} b5 {[%emt 0:13:39]} 9. Be2 {[%emt 0:01:11]} e6 {[%emt 0:01:02]} 10. a3 {[%emt 0:01:51]} cxd4 {[%emt 0:01:13]} 11. exd4 {[%emt 0:00:06]} Qc7 {[%emt 0:08:09]} 12. Nc3 {[%emt 0:00:34]} Rd8 {[%emt 0:00:03]} 13. Bg5 {[%emt 0:01:33]} Be7 {[%emt 0:04:02]} 14. Rc1 {[%emt 0:00:58]} O-O {[%emt 0:01:14]} 15. Bd3 {[%emt 0:04:57]} Be8 {[%emt 0:05:38]} 16. Ne4 {[%emt 0:06:22]} Qb6 {[%emt 0:03:16]} 17. Nxf6+ {[%emt 0:02:27]} Bxf6 {[%emt 0:07:37]} 18. Bxf6 {[%emt 0:00:04]} gxf6 {[%emt 0:00:18]} 19. Qd2 {[%emt 0:00:04]} Kg7 {[%emt 0:12:14]} 20. Qf4 {[%emt 0:04:26]} Rg8 {[%emt 0:03:42]} 21. Qg4+ {[%emt 0:11:23]} Kf8 {[%emt 0:01:09]} 22. Qh4 {[%emt 0:00:01]} f5 {[%emt 0:03:14]} 23. Qxh7 {[%emt 0:03:14]} Nxd4 {[%emt 0:00:18]} 24. Qh6+ {[%emt 0:01:29]} Rg7 {[%emt 0:01:03]} 25. Ne5 {[%emt 0:05:53]} Kg8 {[%emt 0:00:30]} 26. Rfe1 {[%emt 0:00:40]} Nc6 {[%emt 0:01:34]} 27. Bxf5 {[%emt 0:05:51]} Nxe5 {[%emt 0:00:02]} 28. Rxe5 {[%emt 0:00:08]} Qd4 {[%emt 0:01:47]} 29. Re4 {[%emt 0:03:04]} Qxb2 {[%emt 0:00:49]} 30. Rh4 {[%emt 0:01:22]} Kf8 {[%emt 0:00:22]} 31. Rg4 {[%emt 0:04:30]} Bc6 {[%emt 0:00:02]} 32. Rf1 {[%emt 0:01:00]} exf5 {[%emt 0:02:15]} 33. Qh8+ {[%emt 0:01:03]} Ke7 {[%emt 0:00:02]} 34. Qxg7 {[%emt 0:00:31]} Qxg7 {[%emt 0:00:49]} 35. Rxg7 {[%emt 0:00:04]} f4 {[%emt 0:00:43]} 36. Re1+ {[%emt 0:00:42]} Kf8 {[%emt 0:00:44]} 37. Rg4 {[%emt 0:00:08]} Rd4 {[%emt 0:00:25]} 38. g3 {[%emt 0:01:16]} Ra4 {[%emt 0:00:11]} 39. Rxf4 {[%emt 0:02:56]} Rxa3 {[%emt 0:00:01]} 40. h4 {[%emt 0:00:12]} Bd7 {[%emt 0:01:27]} 41. h5 {[%emt 0:30:11]} Kg8 {[%emt 0:02:39]} 42. g4 {[%emt 0:00:00]} Rd3 {[%emt 0:00:07]} 43. Re7 {[%emt 0:00:00]} Be6 {[%emt 0:00:31]} 44. g5 {[%emt 0:00:00]} Rd5 {[%emt 0:06:41]} 45. g6 {[%emt 0:00:00]} Rg5+ {[%emt 0:00:03]} 46. Kf1 {[%emt 0:00:00]} Bc4+ {[%emt 0:00:06]} 47. Ke1 {[%emt 0:00:00]} Kf8 {[%emt 0:03:08]} 48. gxf7 {[%emt 0:00:00]} 1-0

[Event "Asian Nation Cup Open 2018"]
[Site "Hamedan"]
[Date "2018.08.03"]
[Round "7"]
[White "Ghaem Maghami, Ehsan"]
[Black "Nguyen, Ngoc Truong Son"]
[Result "1/2-1/2"]
[ECO "B53"]
[WhiteElo "2537"]
[BlackElo "2618"]
[Annotator "ChessBase"]
[PlyCount "61"]
[EventDate "2018.07.27"]
[EventType "swiss"]
[EventCountry "IRI"]
[SourceTitle "playchess.com"]
[Source "ChessBase"]
[SourceQuality "1"]
[WhiteTeam "Iran"]
[BlackTeam "Vietnam"]
[WhiteTeamCountry "IRI"]
[BlackTeamCountry "VIE"]
[TimeControl "40/5400+30:1800+30"]

1. e4 {[%emt 0:01:38]} c5 {[%emt 0:03:25]} 2. Nf3 {[%emt 0:00:26]} d6 {[%emt 0:00:10]} 3. d4 {[%emt 0:04:58]} cxd4 {[%emt 0:00:11]} 4. Qxd4 {[%emt 0:00:08]} Nc6 {[%emt 0:00:23]} 5. Bb5 {[%emt 0:00:28]} Bd7 {[%emt 0:00:16]} 6. Bxc6 {[%emt 0:00:57]} Bxc6 {[%emt 0:00:08]} 7. Nc3 {[%emt 0:00:19]} Nf6 {[%emt 0:00:30]} 8. Bg5 {[%emt 0:00:22]} e6 {[%emt 0:00:38]} 9. O-O-O {[%emt 0:00:30]} Be7 {[%emt 0:00:16]} 10. Rhe1 {[%emt 0:09:39]} O-O {[%emt 0:00:45]} 11. Kb1 {[%emt 0:05:20]} Qa5 {[%emt 0:07:16]} 12. Qd2 {[%emt 0:02:11]} Kh8 {[%emt 0:10:00]} 13. Nd4 {[%emt 0:05:13]} Rfd8 {[%emt 0:04:57]} 14. f4 {[%emt 0:07:30]} h6 {[%emt 0:03:21]} 15. Bxf6 {[%emt 0:00:30]} Bxf6 {[%emt 0:00:15]} 16. g4 {[%emt 0:00:14]} Qc5 {[%emt 0:01:24]} 17. f5 {[%emt 0:19:22]} Bxd4 {[%emt 0:06:00]} 18. Qxd4 {[%emt 0:00:17]} Qxd4 {[%emt 0:01:43]} 19. Rxd4 {[%emt 0:00:08]} Rd7 {[%emt 0:00:49]} 20. a4 {[%emt 0:04:20]} Rad8 {[%emt 0:09:26]} 21. b4 {[%emt 0:04:29]} b6 {[%emt 0:01:08]} 22. Kb2 {[%emt 0:00:09]} Kg8 {[%emt 0:04:14]} 23. Ra1 {[%emt 0:07:27]} a5 {[%emt 0:03:28]} 24. b5 {[%emt 0:01:46]} Bb7 {[%emt 0:01:21]} 25. Rf1 {[%emt 0:00:37]} e5 {[%emt 0:08:02]} 26. Rc4 {[%emt 0:03:44]} d5 {[%emt 0:00:46]} 27. exd5 {[%emt 0:00:36]} Bxd5 {[%emt 0:00:07]} 28. Nxd5 {[%emt 0:00:30]} Rxd5 {[%emt 0:00:03]} 29. Rf3 {[%emt 0:02:32]} Rd4 {[%emt 0:08:34]} 30. Rfc3 {[%emt 0:01:02]} Kf8 {[%emt 0:02:00]} 31. h4 {[%emt 0:07:59]} 1/2-1/2

[Event "Asian Nation Cup Open 2018"]
[Site "Hamedan"]
[Date "2018.08.03"]
[Round "7"]
[White "Pourramezanali, Amirreza"]
[Black "Nguyen, Anh Khoi"]
[Result "1-0"]
[ECO "B93"]
[WhiteElo "2537"]
[BlackElo "2454"]
[Annotator "RC"]
[PlyCount "69"]
[EventDate "2018.07.27"]
[EventType "swiss"]
[EventCountry "IRI"]
[SourceTitle "playchess.com"]
[Source "ChessBase"]
[SourceQuality "1"]
[WhiteTeam "Iran"]
[BlackTeam "Vietnam"]
[WhiteTeamCountry "IRI"]
[BlackTeamCountry "VIE"]
[TimeControl "40/5400+30:1800+30"]

1. e4 {[%emt 0:02:03]} c5 {[%emt 0:00:00]} 2. Nf3 {[%emt 0:00:30]} d6 {[%emt 0:00:00]} 3. d4 {[%emt 0:00:05]} cxd4 {[%emt 0:00:00]} 4. Nxd4 {[%emt 0:00:06]} Nf6 {[%emt 0:00:00]} 5. Nc3 {[%emt 0:00:00]} a6 {[%emt 0:00:05]} 6. f4 {[%emt 0:00:00]} e6 {[%emt 0:00:57]} 7. Qf3 {[%emt 0:01:41]} Qb6 {[%emt 0:01:21]} 8. Nb3 {[%emt 0:01:51]} Qc7 {[%emt 0:03:57]} 9. g4 {[%emt 0:02:21]} b5 {[%emt 0:00:12]} 10. g5 {[%emt 0:00:40]} Nfd7 {[%emt 0:01:48]} 11. a3 {[%emt 0:03:11]} Bb7 {[%emt 0:13:45]} 12. Be3 {[%emt 0:00:30]} Nc6 {[%emt 0:00:30]} 13. h4 {[%emt 0:00:30]} Rc8 {[%emt 0:00:30]} 14. Bh3 {[%emt 0:00:30]} b4 {[%emt 0:00:30]} 15. axb4 {[%emt 0:00:30]} Nxb4 {[%emt 0:33:40]} 16. Qg2 {[%emt 1:04:36]} d5 {[%emt 0:00:30]} 17. f5 {[%emt 0:00:30]} e5 {[%emt 0:20:21]} 18. f6 d4 19. O-O-O {[%emt 0:04:00]} Rd8 {[%emt 0:08:55]} 20. Nxd4 {[%emt 0:01:36]} exd4 {[%emt 0:00:06]} 21. Bxd4 {[%emt 0:00:29]} g6 22. h5 gxh5 {[%emt 0:06:45]} 23. Kb1 {[%emt 0:05:17]} Rg8 {[%emt 0:04:38]} 24. Bf5 {[%emt 0:00:55]} Qf4 {[%emt 0:01:06]} 25. Rhg1 {[%emt 0:01:39]} Nc5 {[%emt 0:00:58]} 26. Bxh7 {[%emt 0:00:24]} Rh8 {[%emt 0:01:17]} 27. g6 {[%emt 0:00:01]} Rxd4 {[%emt 0:00:26]} 28. Rxd4 {[%emt 0:00:24]} Qxf6 {[%emt 0:00:17]} 29. Rxb4 {[%emt 0:00:26]} fxg6 {[%emt 0:00:35]} 30. Bxg6+ {[%emt 0:00:18]} Kd7 {[%emt 0:00:20]} 31. Rxb7+ {[%emt 0:05:33]} Nxb7 {[%emt 0:00:03]} 32. e5 {[%emt 0:00:04]} Qb6 {[%emt 0:00:12]} 33. Bf5+ {[%emt 0:00:04]} Ke8 {[%emt 0:00:31]} 34. Rd1 {[%emt 0:00:31]} Nc5 {[%emt 0:00:49]} 35. Bg6+ 1-0

[Event "Asian Nation Cup Open 2018"]
[Site "Hamedan"]
[Date "2018.08.03"]
[Round "7"]
[White "Tran, Tuan Minh"]
[Black "Lorparizangeneh, Shahin"]
[Result "0-1"]
[ECO "D11"]
[WhiteElo "2520"]
[BlackElo "2493"]
[Annotator "RC"]
[PlyCount "38"]
[EventDate "2018.07.27"]
[EventType "swiss"]
[EventCountry "IRI"]
[SourceTitle "playchess.com"]
[Source "ChessBase"]
[SourceQuality "1"]
[WhiteTeam "Vietnam"]
[BlackTeam "Iran"]
[WhiteTeamCountry "VIE"]
[BlackTeamCountry "IRI"]
[TimeControl "40/5400+30:1800+30"]

1. d4 {[%emt 0:04:03]} d5 {[%emt 0:00:01]} 2. c4 {[%emt 0:00:50]} c6 {[%emt 0:00:06]} 3. Nf3 {[%emt 0:00:53]} Nf6 {[%emt 0:00:06]} 4. Qc2 {[%emt 0:00:13]} g6 {[%emt 0:01:10]} 5. Bf4 {[%emt 0:02:47]} Bg7 {[%emt 0:00:06]} 6. e3 {[%emt 0:00:13]} O-O {[%emt 0:00:06]} 7. Nc3 {[%emt 0:00:36]} c5 {[%emt 0:01:41]} 8. dxc5 {[%emt 0:00:57]} dxc4 {[%emt 0:01:01]} 9. Bxc4 {[%emt 0:00:21]} Qa5 {[%emt 0:00:19]} 10. O-O {[%emt 0:00:57]} Qxc5 {[%emt 0:02:42]} 11. Ne5 {[%emt 0:21:00]} Nc6 {[%emt 0:14:06]} 12. Nb5 {[%emt 0:01:52]} Be6 {[%emt 0:02:24]} 13. Nxc6 {[%emt 0:19:23]} Qxc4 {[%emt 0:09:16]} 14. Nxe7+ {[%emt 0:07:10]} Kh8 {[%emt 0:01:37]} 15. Qxc4 {[%emt 0:24:53]} Bxc4 {[%emt 0:00:38]} 16. Nd6 {[%emt 0:00:11]} Bxf1 {[%emt 0:01:12]} 17. Kxf1 {[%emt 0:00:05]} Rae8 {[%emt 0:09:40]} 18. Nxe8 {[%emt 0:07:43]} Rxe8 {[%emt 0:00:22]} 19. Bd6 {[%emt 0:00:48]} Bf8 {[%emt 0:00:37]} 0-1